Cogmind - Beta 15 @@@ ROGUE MODE // 2025.05.12 @ 18:16:56 Player: szymekc Result: Defending 0bPrime! Performance ------------- Evolutions (7) 3500 Regions Visited (20) 4000 Robots Destroyed (300) 1500 Value Destroyed (19832) 19832 Prototype IDs (131) 2620 Alien Tech Used (3) 600 Bonus (31054) 31054 TOTAL SCORE: 63106 Bonus ------- High Alert Combat Kills 12959 Follower Combat Kills 90 Registered with UFD 300 Met Optimus in HQ 500 Met Zhirov 300 Met Warlord at Base 500 MAIN.C Attacked Warlord 500 Warlord Defense Kills 1614 Met Optimus at Protoforge 1000 Completed Drillbomb Mission10000 Optimus Survived to 0b1 3000 Win 3000 Friendly Fire -2709 Cogmind --------- Core Integrity 897/1300 Matter 300/300 Energy 437/440 System Corruption 11% Temperature Cool (0) Movement Walking (86) Location 0bPrime Parts ------- > --- POWER (2) -------- Light Quantum Reactor Improved Quantum Reactor > --- PROPULSION (8) --- Enhanced Biometal Leg Enhanced Biometal Leg Enhanced Biometal Leg Enhanced Biometal Leg Experimental Biometal Leg Experimental VSS Leg (fused) Experimental VSS Leg Experimental VSS Leg > --- UTILITY (10) ----- Large Storage Unit Experimental Optical Array Experimental Core Analyzer Advanced Kinecellerator Experimental Reaction Control System Gun Armor Centrium Heavy Armor Plating Experimental Focal Shield Advanced Force Field > --- WEAPON (2+2) ----- Concept XC Strikerail (+) Concept XC Strikerail (+) Concept XC Strikerail Concept XC Strikerail > --- INVENTORY (15) --- Advanced Energy Well (500) Concept NT7 Matterbank (750) Graphene Brace Experimental Neutron Missile Launcher Experimental Neutron Missile Launcher Peak State ------------ > --- POWER ------------ Light Quantum Reactor Improved Quantum Reactor > --- PROPULSION ------- Enhanced Biometal Leg Enhanced Biometal Leg Enhanced Biometal Leg Enhanced Biometal Leg Experimental Biometal Leg Experimental VSS Leg Experimental VSS Leg Experimental VSS Leg > --- UTILITY ---------- Large Storage Unit Experimental Optical Array Experimental Core Analyzer Advanced Kinecellerator Experimental Reaction Control System Gun Armor Centrium Heavy Armor Plating Experimental Focal Shield Advanced Force Field > --- WEAPON ----------- Concept XC Strikerail Concept XC Strikerail Concept XC Strikerail Concept XC Strikerail > --- INVENTORY -------- Advanced Energy Well Concept NT7 Matterbank Graphene Brace Experimental Neutron Missile Launcher Experimental Neutron Missile Launcher UFD Drillbomb [Rating: 245] Favorites ----------- Power Ion Engine Engine Ion Engine Power Core Light Nuclear Core Reactor Graviton Reactor Propulsion Light Treads Treads Light Treads Leg Experimental VSS Leg Wheel Subdweller Monowheel Flight Unit Improved Diametric Drive Utility Large Storage Unit Device Experimental Sensor Array Storage Large Storage Unit Processor Advanced Signal Interpreter Hackware Improved System Shield Protection Medium Armor Plating Weapon Subdweller Beam Cannon Energy Gun Medium Laser Energy Cannon Subdweller Beam Cannon Ballistic Gun Concept XC Strikerail Ballistic Cannon Light Cannon Launcher Mini Grenade Launcher Special Weapon CPS Tube Impact Weapon Shock Maul Piercing Weapon Heavy Pick Build | -11 -10 -10 -10 -7 -7 -5 -5 -5 -5 -5 -5 -4 -4 -4 -4 -4 -3 -3 -3 -3 ------- Run | Yrd Mat Min Sub Rec Scr Fac Was Fac Upp Upp War Pro Fac Upp Upp Zhi Pro Res Qua Frg Slots Evolved 14 | . . . . . . 10 . . . . . . 2 . . . . 2 . . Power . | . . . . . . . . . . . . . . . . . . . . . Propulsion 6 | . . . . . . 4 . . . . . . 1 . . . . 1 . . Utility 8 | . . . . . . 6 . . . . . . 1 . . . . 1 . . Weapon . | . . . . . . . . . . . . . . . . . . . . . Parts Attached 147 | 8 6 2 8 1 4 25 1 3 6 2 19 1 7 2 . 3 . 3 5 41 Power 16 | 1 . . 2 . 1 2 . 1 1 . 1 . . 1 . 1 . 1 . 4 Engine 3 | 1 . . 1 . . 1 . . . . . . . . . . . . . . Core 3 | . . . 1 . 1 . . . . . . . . 1 . . . . . . Reactor 10 | . . . . . . 1 . 1 1 . 1 . . . . 1 . 1 . 4 Propulsion 32 | 2 1 . 2 . 1 4 . . . . 2 . 2 . . 1 . . 2 15 Treads 4 | 2 . . 1 . 1 . . . . . . . . . . . . . . . Leg 15 | . . . . . . . . . . . . . . . . . . . . 15 Wheel 2 | . 1 . 1 . . . . . . . . . . . . . . . . . Hover . | . . . . . . . . . . . . . . . . . . . . . Flight 11 | . . . . . . 4 . . . . 2 . 2 . . 1 . . 2 . Utility 69 | 3 2 . 1 1 . 16 1 2 3 1 13 1 5 . . 1 . 2 . 17 Device 33 | 3 . . . . . 7 1 1 2 1 9 . 2 . . . . 1 . 6 Storage 5 | . 1 . . . . 1 . . . . 1 . 1 . . . . . . 1 Processor 10 | . . . . . . 3 . . . . 2 . 1 . . . . . . 4 Hackware 9 | . . . . . . 4 . 1 . . 1 1 . . . . . 1 . 1 Protection 12 | . 1 . 1 1 . 1 . . 1 . . . 1 . . 1 . . . 5 Artifact . | . . . . . . . . . . . . . . . . . . . . . Weapon 30 | 2 3 2 3 . 2 3 . . 2 1 3 . . 1 . . . . 3 5 Energy Gun 1 | 1 . . . . . . . . . . . . . . . . . . . . Energy Cannon 12 | . 1 1 3 . . 1 . . . 1 1 . . 1 . . . . 3 . Ballistic Gun 5 | 1 . . . . . . . . . . . . . . . . . . . 4 Ballistic Cannon 1 | . 1 . . . . . . . . . . . . . . . . . . . Launcher 5 | . . 1 . . 1 . . . 1 . 2 . . . . . . . . . Special Weapon 3 | . 1 . . . . . . . 1 . . . . . . . . . . 1 Impact Weapon 2 | . . . . . . 2 . . . . . . . . . . . . . . Slashing Weapon . | . . . . . . . . . . . . . . . . . . . . . Piercing Weapon 1 | . . . . . 1 . . . . . . . . . . . . . . . Special Melee Weapon . | . . . . . . . . . . . . . . . . . . . . . Unidentified Prototypes 39 | . . . . . . 2 1 . 3 . 16 . 2 1 . 3 . . . 11 Corrupted Parts 2 | . . . . . . . . . . . 1 . 1 . . . . . . . System Corruption 16 | . . . . . . . . . . . 6 . 10 . . . . . . . Parts Lost 9 | . . . . . . 1 . . . . 1 . . . . . . . . 7 Power 1 | . . . . . . . . . . . . . . . . . . . . 1 Propulsion 1 | . . . . . . . . . . . . . . . . . . . . 1 Utility 6 | . . . . . . 1 . . . . . . . . . . . . . 5 Weapon 1 | . . . . . . . . . . . 1 . . . . . . . . . Highest Loss Streak 2 | . . . . . . 1 . . . . 1 . . . . . . . . 2 To Critical Strikes . | . . . . . . . . . . . . . . . . . . . . . Average Backups 10 | 1 9 14 11 11 10 7 9 8 5 5 5 5 5 10 11 12 15 14 13 12 Power . | . . . . . . . 1 . . . . . . . . . . . . . Propulsion 1 | . 2 4 1 1 1 . . . . . . . . . . . 3 1 . 1 Utility 5 | . 4 5 6 7 8 4 6 5 4 2 2 2 2 6 7 7 7 6 5 4 Weapon 2 | . 1 3 2 3 1 1 1 1 1 1 2 2 2 2 3 3 3 3 4 2 Tool/Special . | . . . . . . . . . . . . . . . . . . . . . Unused Backups 39 | . 5 3 7 . 7 4 . . . . 1 . . . . . . 3 . 9 Power 1 | . . . . . . 1 . . . . . . . . . . . . . . Propulsion 8 | . 1 . 5 . . . . . . . . . . . . . . 1 . 1 Utility 17 | . 3 2 1 . 4 2 . . . . . . . . . . . 2 . 3 Weapon 11 | . 1 1 1 . 3 1 . . . . 1 . . . . . . . . 3 Tool/Special 2 | . . . . . . . . . . . . . . . . . . . . 2 Average Slot Usage (%) 89 | . 99 100 100 100 97 72 78 78 72 73 75 73 69 76 77 77 77 78 79 90 Engine 4 | . 14 14 5 14 10 . . . . . . . . . . . . . . . Core 2 | . . . 8 . 3 . . . . . . . . 1 4 4 4 . . . Reactor 2 | . . . . . . 3 5 5 5 5 5 5 4 4 4 4 4 7 8 8 Treads 14 | . 23 28 26 28 28 . . . . . . . . . . . . . . . Leg 3 | . . . . . . . . . . . . . . . . . . . . 25 Flight 5 | . . . . . . 12 10 10 10 10 13 15 15 18 18 18 18 20 20 3 Device 9 | . 6 7 10 . . 14 15 10 9 10 18 16 14 13 13 12 13 11 14 13 Storage 8 | . 9 14 14 14 14 5 5 5 . . . . . 4 4 4 4 4 4 4 Processor 5 | . . . . . . 12 15 15 15 14 13 15 14 13 13 13 13 12 12 9 Hackware 4 | . . . . . . 12 15 19 15 15 9 8 9 9 9 9 9 10 9 1 Protection 6 | . 12 6 3 14 14 . . . 4 5 5 5 4 4 4 4 4 4 4 8 Energy Cannon 10 | . 4 25 27 28 3 . . 4 . . . . . . . . . . 1 . Ballistic Gun 2 | . 9 . . . . . . . . . . . . . . . . . . 12 Launcher 1 | . . . . . 10 2 . . . . . . . . . . . . . . Impact Weapon 1 | . . . . . . 3 10 5 5 5 4 5 4 4 4 4 3 4 3 . Piercing Weapon 1 | . . . . . 11 2 . . . . . . . . . . . . . . Peak Build Rating 245 | 9 10 11 17 17 24 118 121 118 124 126 152 149 157 161 160 166 165 181 191 245 Average Rating 83 | 7 9 9 15 16 20 99 117 111 120 123 137 142 145 156 160 160 163 177 183 225 On Entrance 101 | . 9 10 9 17 17 24 118 114 111 123 125 145 142 154 160 160 163 163 181 184 Naked Turns . | . . . . . . . . . . . . . . . . . . . . . Heaviest Build 138 | 10 38 38 48 48 48 36 33 37 37 46 47 37 54 61 61 61 72 63 66 138 Greatest Support 215 | 40 40 40 40 40 40 37 37 37 37 37 38 38 61 61 61 61 61 67 68 215 Greatest Overweight (x) 2 | . 1 . 2 1 1 . . . . 1 1 . . . . . 1 . . 2 Average Overweight (x) . | . . . 1 1 . . . . . . . . . . . . . . . . Largest Inventory Capacity 15 | 5 15 15 15 15 15 15 10 10 10 5 5 5 15 15 15 15 15 15 15 15 Average Capacity 12 | 5 11 15 15 15 15 10 10 10 5 5 5 5 6 15 15 15 15 15 15 15 Most Carried 15 | 3 15 15 15 15 15 13 10 10 10 5 5 5 10 11 11 15 15 15 15 15 Average Carried 12 | 1 9 14 14 14 14 9 9 9 5 4 4 4 5 10 11 12 15 14 14 12 Final Capacity 15 | 5 15 15 15 15 15 10 10 10 5 5 5 5 15 15 15 15 15 15 15 15 Final Carried 15 | 3 14 15 15 15 15 10 10 10 5 5 5 5 10 11 11 15 15 15 15 5 Class Distribution -------------------- 53% | Mutant 25% | Hacker-Ninja 9% | Scavenger-Tank 4% | Hacker-Scout 4% | Scavenger-Mutant Dominant Class ---------------- Mutant | -10/Materials Mutant | -10/Mines Mutant | -10/Subcaves Mutant | -7/Recycling Mutant | -7/Scraptown Hacker-Ninja | -5/Factory Hacker-Scout | -5/Waste Hacker-Ninja | -5/Factory Hacker-Ninja | -5/Upper Caves Hacker-Ninja | -5/Upper Caves Scavenger-Mutant | -5/Warlord Hacker-Ninja | -4/Proximity Caves Hacker-Ninja | -4/Factory Hacker-Ninja | -4/Upper Caves Hacker-Ninja | -4/Upper Caves Hacker-Ninja | -4/Zhirov Hacker-Ninja | -3/Proximity Caves Hacker-Ninja | -3/Research Hacker-Ninja | -3/Quarantine Scavenger-Tank | -3/Protoforge Resources | -11 -10 -10 -10 -7 -7 -5 -5 -5 -5 -5 -5 -4 -4 -4 -4 -4 -3 -3 -3 -3 ----------- Run | Yrd Mat Min Sub Rec Scr Fac Was Fac Upp Upp War Pro Fac Upp Upp Zhi Pro Res Qua Frg Matter Collected 10372 | 295 1 131 314 12 40 375 . 155 146 131 674 10 138 70 16 . 126 60 29 7649 Remotely 41 | 41 . . . . . . . . . . . . . . . . . . . . Salvage Created 15334 | 152 48 100 721 201 . 339 . 512 . . 520 . 517 175 27 . . 165 365 11492 Parts 677 | 12 2 11 40 8 . 12 . 8 . . 24 . 9 7 . . . 2 11 531 Haulers Intercepted 8 | . . . . . . 1 . 4 . . . . 1 . . . . . . 2 Recyclers Shooed 1 | . . . . . . . . . . . . . 1 . . . . . . . Parts Field Recycled . | . . . . . . . . . . . . . . . . . . . . . Retrieved Matter . | . . . . . . . . . . . . . . . . . . . . . Parts Self-Destructed 27 | . . . 11 . . . . . 11 4 . . . 1 . . . . . . Prevented 3 | . . . . . . . . . . . . . . 3 . . . . . . Kills | -11 -10 -10 -10 -7 -7 -5 -5 -5 -5 -5 -5 -4 -4 -4 -4 -4 -3 -3 -3 -3 ------- Run | Yrd Mat Min Sub Rec Scr Fac Was Fac Upp Upp War Pro Fac Upp Upp Zhi Pro Res Qua Frg Combat Hostiles Destroyed 248 | . 1 5 17 3 . 3 . 1 . . 12 . . 2 . . . 1 3 200 Melee 2 | . . . . . . . . 1 . . . . . . . . . . 1 . Guns 116 | . 1 . . . . . . . . . . . . . . . . . . 115 Cannons 22 | . . 2 15 3 . 2 . . . . . . . . . . . . . . AOE 102 | . . 3 2 . . . . . . . 12 . . . . . . . . 85 Classes Destroyed 28 | 3 1 1 2 . . 4 . . . . 1 . 1 . 1 . . . 1 13 Worker 4 | 2 1 . . . . . . . . . . . . . . . . . 1 . Builder 2 | . . . . . . 1 . . . . . . . . . . . 1 . . Tunneler 3 | 2 . 1 . . . . . . . . . . . . . . . . . . Hauler 9 | . . . . . . 1 . 4 . . . . 1 . . . . . . 3 Recycler 4 | 1 . . . . . . . . . . . . 3 . . . . . . . Carrier 2 | . . . . . . . . . . . . . . . . . . . . 2 Minesweeper 1 | . . . . . . . . . . . . . . . 1 . . . . . Mechanic 10 | . . . . . . . . . . . . . . . . . . . 1 9 Operator 1 | . . . . . . . . . . . . . 1 . . . . . . . Drone 3 | . . . . . . . . . . . . . . . . . . . . 3 Watcher 15 | . . . . . . 3 . 4 . . . . . . . . . 2 1 5 Swarmer 32 | . . 3 2 . . . . 1 . . . . . . . . . . . 26 Saboteur 7 | . . . . . . . . . . . . . . . . . . . . 7 Grunt 45 | . 1 2 1 . . 1 . . . . 7 . . 1 . . . . 3 29 Brawler 12 | . . . . . . . . . . . . . . . . . . . . 12 Duelist 11 | . . . . . . . . . . . . . . . . . . . . 11 Protector 11 | . . . . . . . . . . . . . . . . . . . . 11 Sentry 7 | . . . 1 3 . . . . . . . . . 1 . . . 1 . 1 Specialist 1 | . . . . . . . . . . . . . . . . . . . . 1 Hunter 18 | . . . . . . . . . . . . . . . . . . . . 18 Programmer 24 | . . . . . . 2 . . . . 3 . . . . . . . . 19 Hotshot 2 | . . . . . . . . . . . . . . . . . . . . 2 Overlord 1 | . . . . . . . . . . . . . . . . . . . . 1 Striker 30 | . . . . . . . . . . . 2 . . . . . . . . 28 Executioner 29 | . . . . . . . . . . . . . . . . . . . . 29 Alpha 7 1 | . . . . . . . . . . . . . . . . . . . . 1 Subdweller 13 | . . . 13 . . . . . . . . . . . . . . . . . Elite 1 | . . . . . . . . . . . . . . . . . . . . 1 Scrapoid 2 | . . . . . . . . . . . . . . . . . . . . 2 Thug 1 | . . . . . . . . . . . 1 . . . . . . . . . Best Kill Streak 27 | 2 1 4 3 1 . 2 . 2 . . 12 . 2 1 1 . . 1 5 27 Combat Bots Only 26 | . 1 3 3 1 . 2 . 1 . . 12 . . 1 . . . 1 2 26 Max Kills in Single Turn 6 | 2 1 4 2 1 . 1 . 1 . . 4 . 1 1 1 . . 1 1 6 Gunslinging 2 | . . . . . . . . . . . . . . . . . . . . 2 Exploded 5 | . . 3 1 . . . . . . . 4 . . . . . . . . 5 Melee 1 | . . . . . . . . 1 . . . . . . . . . . 1 . Uniques/NPCs Destroyed 1 | . . . . . . . . . . . 1 . . . . . . . . . LV-01A (-5/Warlord) Combat | -11 -10 -10 -10 -7 -7 -5 -5 -5 -5 -5 -5 -4 -4 -4 -4 -4 -3 -3 -3 -3 -------- Run | Yrd Mat Min Sub Rec Scr Fac Was Fac Upp Upp War Pro Fac Upp Upp Zhi Pro Res Qua Frg Hostile Shots Fired 802 | . 8 19 33 48 . 45 . 35 3 1 22 . 2 8 . . . 34 34 510 Missed 315 | . 3 12 16 8 . 21 . 18 . 1 9 . 1 3 . . . 17 17 189 Deflected 2 | . . . . . . . . . . . . . . . . . . . . 2 Hits 487 | . 5 7 17 40 . 24 . 17 3 . 13 . 1 5 . . . 17 17 321 Melee 6 | . . . . . . . . . . . . . . . . . . . . 6 Projectile 481 | . 5 7 17 40 . 24 . 17 3 . 13 . 1 5 . . . 17 17 315 AOE 1 | . . . . . . . . 1 . . . . . . . . . . . . Critical Strikes 28 | . . . 1 . . 4 . . . . . . . . . . . 2 1 20 Actively Blocked 7 | . . . . . . . . . . . . . . . . . . . . 7 Part Disruptions 1 | . . . . . . . . . . . . . . . . . . . . 1 Damage Taken 7368 | . 56 126 325 318 . 469 . 257 54 . 496 . 22 117 . . . 433 268 4427 Core 598 | . . . 54 53 . 43 . 22 . . 23 . . . . . . 25 39 339 Absorbed by Shields 3251 | . . . . . . . . . . . . . . . . . . . . 3251 Redirected to Shielding 414 | . . . . . . . . . . . . . . . . . . . . 414 Ignored by Resistances 1162 | . . . . . . . . . . . 62 . . . . . . . . 1100 Regen/Repaired (Parts) 42 | . . . . . . . . 42 . . . . . . . . . . . . Core Remaining (%) 83 | 100 . . . . 57 . . . . . . 91 . . . . 100 . . 69 Volleys Fired 398 | 15 14 7 54 8 . 20 . 5 2 4 11 3 1 12 . . . . 24 218 Largest 4 | 2 2 2 2 2 . 1 . 1 1 1 1 1 1 1 . . . . 1 4 Hottest 160 | 70 100 90 160 160 . 98 . 98 98 98 60 50 50 88 . . . . 113 128 Shots Fired 898 | 30 25 12 75 16 . 20 . 6 2 4 11 3 1 10 . . . . 24 659 Gun 658 | 30 23 . . . . . . . . . . . . . . . . . . 605 Cannon 164 | . . 10 65 16 . 20 . 6 2 4 1 3 1 10 . . . . 24 2 Launcher 67 | . . 2 4 . . . . . . . 9 . . . . . . . . 52 Special 9 | . 2 . 6 . . . . . . . 1 . . . . . . . . . Kinetic 637 | 15 12 5 . . . . . . . . . . . . . . . . . 605 Thermal 162 | 15 13 5 71 16 . 20 . 6 2 4 . . . . . . . . 9 1 Explosive 67 | . . 2 4 . . . . . . . 9 . . . . . . . . 52 Electromagnetic 25 | . . . . . . . . . . . . . . 10 . . . . 15 . Entropic 6 | . . . . . . . . . . . 1 3 1 . . . . . . 1 Robot Hit Streak 63 | 4 8 5 11 8 . 9 . 2 . . 5 . . 4 . . . . 4 63 Robot Miss Streak 3 | 3 3 2 1 1 . 1 . . . . 1 . . 1 . . . . 3 2 Penetration Max 2 | . . . . . . . . . . . . . . . . . . . . 2 Secondary Targets 36 | . . . . . . . . . . . . . . . . . . . . 36 Max Gunslinging Chain 2 | . . . . . . . . . . . . . . . . . . . . 2 Shots Hit Robots 666 | 18 16 7 31 13 . 16 . 14 . . 11 . 5 7 1 . . 9 13 505 Core Hits 517 | 8 4 7 20 7 . 4 . 1 . . 27 . 2 2 . . . 2 3 430 Critical Kills 40 | . . . . . . . . . . . . . 1 . . . . 1 . 38 Critical Parts Destroyed 56 | . . . . . . 1 . 5 . . 2 . 1 . . . . 1 2 44 Critical Strikes 108 | 1 1 1 . . . 2 . 5 . . 2 . 2 . . . . 4 2 88 Burn 2 | 1 1 . . . . . . . . . . . . . . . . . . . Destroy 86 | . . . . . . . . . . . . . . . . . . . . 86 Blast 1 | . . 1 . . . . . . . . . . . . . . . . . . Smash 18 | . . . . . . 1 . 5 . . 2 . 2 . . . . 4 2 2 Impale 1 | . . . . . . 1 . . . . . . . . . . . . . . Melee Attacks 205 | . . . . . . 39 . 32 15 11 7 11 21 2 2 . 11 25 20 9 Impact 186 | . . . . . . 20 . 32 15 11 7 11 21 2 2 . 11 25 20 9 Slashing . | . . . . . . . . . . . . . . . . . . . . . Piercing 19 | . . . . . . 19 . . . . . . . . . . . . . . Sneak Attacks 18 | . . . . . . 4 . 3 . . 3 . 4 . 1 . . 2 1 . Combat Hostiles 1 | . . . . . . . . . . . . . . . . . . 1 . . Follow-up Attacks . | . . . . . . . . . . . . . . . . . . . . . Damage Inflicted 57046 | 200 175 292 1031 358 . 1025 . 984 . . 3857 . 648 254 131 . . 481 708 46902 Guns 19654 | 200 169 . . . . . . . . . . . . . . . . . . 19285 Cannons 2163 | . . 125 818 346 . 247 . . . . . . . 254 . . . . 373 . Explosions 31284 | . . 161 213 . . . . . . . 3483 . . . . . . . . 27427 Melee 3873 | . . . . . . 778 . 984 . . 374 . 648 . 131 . . 481 335 142 Ramming 72 | . 6 6 . 12 . . . . . . . . . . . . . . . 48 Kinetic 19509 | 89 80 55 . . . . . . . . . . . . . . . . . 19285 Thermal 4195 | 111 89 70 818 346 . 247 . . . . 523 . . . . . . . . 1991 Explosive 28768 | . . 161 213 . . . . . . . 2960 . . . . . . . . 25434 Electromagnetic 629 | . . . . . . . . . . . . . . 254 . . . . 373 2 Impact 3675 | . . . . . . 580 . 984 . . 374 . 648 . 131 . . 481 335 142 Slashing . | . . . . . . . . . . . . . . . . . . . . . Piercing 198 | . . . . . . 198 . . . . . . . . . . . . . . Highest Corruption 15 | . . . . . . 3 8 8 8 8 8 6 15 15 15 15 15 1 1 11 Average Corruption 7 | . . . . . . 2 5 8 8 8 6 6 8 15 15 15 15 1 1 6 Corruption Purged 2 | . . . . . . 2 . . . . . . . . . . . . . . Corruption Blocked . | . . . . . . . . . . . . . . . . . . . . . Effects 180 | . . . . . . 2 1 16 25 13 13 4 3 15 4 3 8 . 5 68 Message Errors 37 | . . . . . . . 1 6 8 3 3 1 . 3 . . 3 . . 9 Matter Fused 48 | . . . . . . . . 2 6 4 3 . 1 4 1 . 2 . 2 23 Heat Flow Errors 19 | . . . . . . 1 . 2 3 1 4 . . 2 1 . . . . 5 Energy Discharges 21 | . . . . . . . . . 1 1 2 1 2 . . 2 1 . 2 9 Parts Rejected 1 | . . . . . . . . 1 . . . . . . . . . . . . Parts Fused 4 | . . . . . . . . 1 . . . . . . 1 . . . . 2 Data Loss (minor) 21 | . . . . . . 1 . 1 3 2 1 . . 2 1 1 2 . 1 6 Data Loss (major) 8 | . . . . . . . . 1 3 . . 1 . . . . . . . 3 Misfires 1 | . . . . . . . . 1 . . . . . . . . . . . . Alerts 9 | . . . . . . . . 1 1 2 . 1 . 2 . . . . . 2 Misdirections 1 | . . . . . . . . . . . . . . . . . . . . 1 Weapon Failures 10 | . . . . . . . . . . . . . . 2 . . . . . 8 Overload Shots . | . . . . . . . . . . . . . . . . . . . . . Overflow Damage 3371 | . . . 56 . . 389 . 650 . . 328 . 358 . 104 . . 149 218 1119 Projectiles . | . . . . . . . . . . . . . . . . . . . . . Explosions 1205 | . . . 56 . . . . . . . 172 . . . . . . . . 977 Melee 2166 | . . . . . . 389 . 650 . . 156 . 358 . 104 . . 149 218 142 Knockbacks 13 | . 1 2 . . . 1 . 2 . . 2 . 2 . 1 . . 1 1 . Impact 11 | . 1 . . . . 1 . 2 . . 2 . 2 . 1 . . 1 1 . Kinetic 2 | . . 2 . . . . . . . . . . . . . . . . . . Secondary . | . . . . . . . . . . . . . . . . . . . . . Self-Inflicted Damage 443 | . . 57 58 . . . . . . . 151 . . . . . . . . 177 Shots 7 | . . 1 2 . . . . . . . 2 . . . . . . . . 2 Rammed 8 | . . 4 . 4 . . . . . . . . . . . . . . . . Targets Rammed 11 | . 1 4 . 4 . . . . . . . . . . . . . . . 2 Kicked 2 | . . . . . . . . . . . . . . . . . . . . 2 Crushed 1 | . 1 . . . . . . . . . . . . . . . . . . . Highest Temperature 385 | 110 178 210 323 385 . 217 . 253 182 245 179 4 6 221 152 . . . . 186 Average Temperature 85 | 46 55 108 75 190 . 86 . 73 68 89 70 3 6 77 56 . . . . 93 Received Heat Transfer 596 | . 30 15 66 102 . 9 . 18 . . 39 . 12 27 . . . 36 88 154 Effects 1 | . . . . 1 . . . . . . . . . . . . . . . . Energy Bleed 1 | . . . . 1 . . . . . . . . . . . . . . . . Siege Activations . | . . . . . . . . . . . . . . . . . . . . . Martial Activations . | . . . . . . . . . . . . . . . . . . . . . Shielding Activations 2 | . . . . . . . . . . . . . . . . . . . . 2 Total Turns 46 | . . . . . . . . . . . . . . . . . . . . 46 Longest Duration 34 | . . . . . . . . . . . . . . . . . . . . 34 Robots Disrupted 4 | . . . . . . . . . . . . . . 1 . . . . . 3 Combat Hostiles 4 | . . . . . . . . . . . . . . 1 . . . . . 3 Robots Corrupted 25 | . . . . . . 3 . 7 . . 1 . 3 2 1 . . 3 4 1 Combat Hostiles 6 | . . . . . . 1 . . . . . . . 2 . . . 1 2 . Parts Fried 25 | . . . . . . 3 . 4 . . . . 3 4 1 . . 4 5 1 Impact Corruptions 49 | . . . . . . 6 . 14 . . 6 . 6 . 3 . . 6 6 2 Robots Melted . | . . . . . . . . . . . . . . . . . . . . . Combat Hostiles . | . . . . . . . . . . . . . . . . . . . . . Parts Melted 8 | 1 1 . 2 . . 2 . . . . . . . . . . . . . 2 Heat Transferred 4891 | 407 333 148 1221 481 . 300 . . . . 500 . . . . . . . . 1501 Parts Sabotaged . | . . . . . . . . . . . . . . . . . . . . . Parts Stolen . | . . . . . . . . . . . . . . . . . . . . . Parts Stripped . | . . . . . . . . . . . . . . . . . . . . . Power Chain Reactions 20 | . . . . . . 1 . . . . 4 . . . . . . . . 15 Alert | -11 -10 -10 -10 -7 -7 -5 -5 -5 -5 -5 -5 -4 -4 -4 -4 -4 -3 -3 -3 -3 ------- Run | Yrd Mat Min Sub Rec Scr Fac Was Fac Upp Upp War Pro Fac Upp Upp Zhi Pro Res Qua Frg Maximum Alert Level 5 | . . . . . . . . 1 . . . . . . . . . . . 5 Low Security (%) 72 | 100 100 100 . 100 . 100 100 95 . . . . 100 . . . . 100 100 12 Level 1 5 | . . . . . . . . 4 . . . . . . . . . . . 18 Level 2 . | . . . . . . . . . . . . . . . . . . . . 2 Level 3 1 | . . . . . . . . . . . . . . . . . . . . 3 Level 4 2 | . . . . . . . . . . . . . . . . . . . . 9 Level 5 16 | . . . . . . . . . . . . . . . . . . . . 53 High Security . | . . . . . . . . . . . . . . . . . . . . . Max Security . | . . . . . . . . . . . . . . . . . . . . . Peak Influence 5425 | 10 30 93 . 64 . 59 20 215 . . . . 26 . . . . 116 80 5425 Initial 39 | . . . . 39 . . 20 7 . . . . . . . . . . . 4 Average 742 | 1 2 14 . 16 . 7 16 92 . . . . 8 . . . . 43 22 2315 Influence Increases 8366 | 25 55 143 131 233 . 321 . 333 150 15 240 . 131 40 5 . . 244 222 6078 Destroy 0b10 Robot/C 4460 | . 20 100 80 60 . 60 . 20 . . 240 . . 40 . . . 20 60 3760 Destroy 0b10 Robot/NC 310 | 25 5 5 . . . 25 . 40 . . . . 25 . 5 . . 15 15 150 Destroy Leader 700 | . 10 20 . . . 18 . 16 . . . . . . . . . 14 2 620 Allied During Kill 6 | . . . 6 . . . . . . . . . . . . . . . . . Trap Triggered on 0b10 10 | . . . . . . . . 10 . . . . . . . . . . . . Successful Hack 240 | . 5 . . 20 . 55 . 33 . . . . 16 . . . . 90 21 . Select Force Hacks 200 | . . . . 150 . 50 . . . . . . . . . . . . . . Disable Machine 510 | . 15 . . . . . . . . . . . 15 . . . . . 30 450 Anti-Garrison Action 300 | . . . . . . . . 150 . . . . . . . . . . . 150 Destroy Structure 865 | . . 18 . 3 . 68 . 34 . . . . 30 . . . . 30 34 648 Partial Spotted 150 | . . . . . . 15 . 30 . . . . . . . . . 75 15 15 Lose Combat Pursuer 615 | . . . 45 . . 30 . . 150 15 . . 45 . . . . . 45 285 Influence Decreases 2953 | 25 55 112 79 316 . 262 49 343 120 30 33 222 131 40 5 . . 242 215 674 Entered New Map 353 | . . . 17 44 . . 39 3 . 6 15 222 . . . . . . 2 5 Time Decay 2141 | 25 55 112 62 272 . 241 10 173 120 24 8 . 131 40 5 . . 130 134 599 Lost Part 90 | . . . . . . 10 . . . . 10 . . . . . . . . 70 Lost Ally 10 | . . . . . . . . . . . . . . . . . . 10 . . Purge Threat 359 | . . . . . . 11 . 167 . . . . . . . . . 102 79 . Squads Dispatched 50 | . 2 . . . . 9 . 15 . . . . 9 . . . . 3 1 11 Investigation 25 | . 1 . . . . 5 . 6 . . . . 5 . . . . 1 . 7 Extermination 9 | . . . . . . 3 . 2 . . . . 2 . . . . 1 1 . Reinforcement 11 | . 1 . . . . 1 . 5 . . . . 1 . . . . 1 . 2 Assault 4 | . . . . . . . . 2 . . . . . . . . . . . 2 Garrison 1 | . . . . . . . . . . . . . 1 . . . . . . . Intercept . | . . . . . . . . . . . . . . . . . . . . . Searches Triggered . | . . . . . . . . . . . . . . . . . . . . . Construction Impeded . | . . . . . . . . . . . . . . . . . . . . . Haulers Reinforced 3 | . . . . . . 1 . 2 . . . . . . . . . . . . Active Scanning Responses . | . . . . . . . . . . . . . . . . . . . . . Cargo Convoy Interrupts . | . . . . . . . . . . . . . . . . . . . . . Stealth | -11 -10 -10 -10 -7 -7 -5 -5 -5 -5 -5 -5 -4 -4 -4 -4 -4 -3 -3 -3 -3 --------- Run | Yrd Mat Min Sub Rec Scr Fac Was Fac Upp Upp War Pro Fac Upp Upp Zhi Pro Res Qua Frg Distress Signals 12 | . . . . . . . . . . . 1 . 2 . . . . . . 9 Communications Jammed 2 | . . . . . . 2 . . . . . . . . . . . . . . Distress Signals 2 | . . . . . . 2 . . . . . . . . . . . . . . Times Spotted 499 | . 6 5 19 2 . 19 5 36 7 5 48 . 8 2 . . . 15 12 310 Peak Tracking Total 16 | . 2 3 2 1 . 8 5 8 7 7 11 . 5 1 . . . 10 3 16 Tactical Retreats 30 | . . . 1 . . 5 . 5 6 1 . . 2 . . . . . 2 8 Traps | -11 -10 -10 -10 -7 -7 -5 -5 -5 -5 -5 -5 -4 -4 -4 -4 -4 -3 -3 -3 -3 ------- Run | Yrd Mat Min Sub Rec Scr Fac Was Fac Upp Upp War Pro Fac Upp Upp Zhi Pro Res Qua Frg Traps Triggered 15 | . 1 . 1 . . 6 . 1 . . . . 2 . . . . . . 4 Indirectly . | . . . . . . . . . . . . . . . . . . . . . Trap Hack Attempts . | . . . . . . . . . . . . . . . . . . . . . Triggered . | . . . . . . . . . . . . . . . . . . . . . Disarmed 4 | . . . . . . . . 4 . . . . . . . . . . . . Reprogrammed 1 | . . . . . . . . 1 . . . . . . . . . . . . Reused 1 | . . . . . . . . 1 . . . . . . . . . . . . Traps Extracted . | . . . . . . . . . . . . . . . . . . . . . Installed 1 | . . . . . . 1 . . . . . . . . . . . . . . Triggered 1 | . . . . . . . . 1 . . . . . . . . . . . . Most Traps Carried 2 | . . . . . 2 2 1 1 1 . . . . . . . . . . . Machines | -11 -10 -10 -10 -7 -7 -5 -5 -5 -5 -5 -5 -4 -4 -4 -4 -4 -3 -3 -3 -3 ---------- Run | Yrd Mat Min Sub Rec Scr Fac Was Fac Upp Upp War Pro Fac Upp Upp Zhi Pro Res Qua Frg Machines Disabled 44 | . 1 . 3 . . . . 1 2 2 1 . 1 . . . . . 2 31 Max in Single Turn 3 | . 1 . 2 . . . . 1 1 1 1 . 1 . . . . . 1 3 Garrison Access 4 | . . . . . . 1 . 2 . . . . . . . . . . . 1 Machines Repaired . | . . . . . . . . . . . . . . . . . . . . . Machines Dismantled . | . . . . . . . . . . . . . . . . . . . . . Machines Sabotaged . | . . . . . . . . . . . . . . . . . . . . . Overloaded Fab Kills 1 | . . . . . . 1 . . . . . . . . . . . . . . Hacking | -11 -10 -10 -10 -7 -7 -5 -5 -5 -5 -5 -5 -4 -4 -4 -4 -4 -3 -3 -3 -3 --------- Run | Yrd Mat Min Sub Rec Scr Fac Was Fac Upp Upp War Pro Fac Upp Upp Zhi Pro Res Qua Frg Machines Accessed 99 | . 1 . 3 10 2 18 . 16 3 1 6 . 9 . . 4 . 10 7 9 Terminals 46 | . 1 . . 5 . 10 . 9 1 1 . . 4 . . . . 8 6 1 Fabricators 8 | . . . . . . 3 . 1 . . . . . . . . . . . 4 Repair Stations 1 | . . . . . . . . 1 . . . . . . . . . . . . Recycling Units 20 | . . . . 5 . 3 . 4 . . . . 4 . . . . 1 . 3 Scanalyzers 4 | . . . . . . 1 . . . . . . 1 . . . . 1 1 . Garrison Access 3 | . . . . . . 1 . 1 . . . . . . . . . . . 1 Total Hacks 268 | . 5 . 4 28 10 43 . 44 9 7 10 . 26 . . 17 . 22 15 28 Successful 166 | . 3 . 4 18 10 30 . 25 9 7 10 . 12 . . 17 . 8 5 8 Failed 102 | . 2 . . 10 . 13 . 19 . . . . 14 . . . . 14 10 20 Catastrophic 15 | . . . . . . 2 . 2 . . . . 3 . . . . 1 3 4 Database Lockouts . | . . . . . . . . . . . . . . . . . . . . . Manual 79 | . 4 . . 19 . 18 . 13 . . . . 9 . . . . 2 4 10 Terminals 138 | . 5 . . 17 . 27 . 27 5 7 . . 13 . . . . 19 14 4 Fabricators 24 | . . . . . . 6 . 4 . . . . . . . . . . . 14 Repair Stations 2 | . . . . . . . . 2 . . . . . . . . . . . . Recycling Units 46 | . . . . 11 . 7 . 10 . . . . 11 . . . . 1 . 6 Scanalyzers 7 | . . . . . . 2 . . . . . . 2 . . . . 2 1 . Garrison Access 6 | . . . . . . 1 . 1 . . . . . . . . . . . 4 Terminal Hacks 97 | . 1 . 4 2 10 11 . 12 9 7 10 . 2 . . 17 . 6 5 1 Record 41 | . 1 . 1 . 10 . . . 8 7 9 . . . . 5 . . . . Part Schematic 4 | . . . . . . . . . . . . . . . . 4 . . . . Robot Analysis 4 | . . . . . . . . . . . . . . . . 4 . . . . Prototype ID Bank 8 | . . . . . . 2 . . . . . . 1 . . 4 . 1 . . Open Door 5 | . . . 1 . . 2 . . 1 . 1 . . . . . . . . . Open DSF 1 | . . . . . . 1 . . . . . . . . . . . . . . Branch Access Points 4 | . . . . 1 . 1 . 1 . . . . . . . . . 1 . . Machine Index 1 | . . . . . . 1 . . . . . . . . . . . . . . Terminal Index 1 | . . . . 1 . . . . . . . . . . . . . . . . Unreport Threat 6 | . . . . . . 1 . 2 . . . . . . . . . 1 2 . Locate Traps 5 | . . . . . . 1 . 2 . . . . . . . . . . 2 . Disarm Traps 1 | . . . . . . . . 1 . . . . . . . . . . . . Reprogram Traps 1 | . . . . . . . . 1 . . . . . . . . . . . . Recall Assault 1 | . . . . . . . . 1 . . . . . . . . . . . . Hauler Manifests 3 | . . . . . . 1 . 1 . . . . . . . . . . 1 . Registered Components 4 | . . . . . . 1 . 1 . . . . 1 . . . . 1 . . Registered Prototypes 2 | . . . . . . . . 1 . . . . . . . . . 1 . . Zone Layout 3 | . . . . . . . . 1 . . . . . . . . . 1 . 1 Proto ID Catalog 1 | . . . 1 . . . . . . . . . . . . . . . . . Release Object 1 | . . . 1 . . . . . . . . . . . . . . . . . Fabricator Hacks 6 | . . . . . . 2 . 1 . . . . . . . . . . . 3 Network Status 3 | . . . . . . 2 . 1 . . . . . . . . . . . . Load Schematic 2 | . . . . . . . . . . . . . . . . . . . . 2 Build 1 | . . . . . . . . . . . . . . . . . . . . 1 Repair Station Hacks 2 | . . . . . . . . 2 . . . . . . . . . . . . Scan Component 1 | . . . . . . . . 1 . . . . . . . . . . . . Repair 1 | . . . . . . . . 1 . . . . . . . . . . . . Recycling Unit Hacks 15 | . . . . 5 . 3 . 3 . . . . 3 . . . . . . 1 Retrieve Components 15 | . . . . 5 . 3 . 3 . . . . 3 . . . . . . 1 Scanalyzer 2 | . . . . . . 2 . . . . . . . . . . . . . . Insert Component 1 | . . . . . . 1 . . . . . . . . . . . . . . Analyze 1 | . . . . . . 1 . . . . . . . . . . . . . . Garrison Access Hacks 2 | . . . . . . 1 . 1 . . . . . . . . . . . . Seal Access 2 | . . . . . . 1 . 1 . . . . . . . . . . . . Unauthorized Hacks 42 | . 2 . . 11 . 11 . 6 . . . . 7 . . . . 2 . 3 Terminals 19 | . 2 . . 6 . 7 . 1 . . . . 1 . . . . 1 . 1 Track 1 | . . . . . . . . . . . . . . . . . . . . 1 Assimilate 3 | . . . . . . 2 . . . . . . . . . . . 1 . . Botnet 8 | . 1 . . 3 . 2 . 1 . . . . 1 . . . . . . . Operators 1 | . . . . . . 1 . . . . . . . . . . . . . . Skim 6 | . 1 . . 3 . 2 . . . . . . . . . . . . . . Fabricators 3 | . . . . . . 1 . 1 . . . . . . . . . . . 1 Liberate 1 | . . . . . . . . 1 . . . . . . . . . . . . Overload 1 | . . . . . . 1 . . . . . . . . . . . . . . Recompile 1 | . . . . . . . . . . . . . . . . . . . . 1 Repair Stations . | . . . . . . . . . . . . . . . . . . . . . Recycling Units 20 | . . . . 5 . 3 . 4 . . . . 6 . . . . 1 . 1 Reject 1 | . . . . . . . . . . . . . 1 . . . . . . . Mask 1 | . . . . . . . . . . . . . 1 . . . . . . . Tunnel 5 | . . . . 5 . . . . . . . . . . . . . . . . Fedlink 13 | . . . . . . 3 . 4 . . . . 4 . . . . 1 . 1 Scanalyzers . | . . . . . . . . . . . . . . . . . . . . . Garrison Access . | . . . . . . . . . . . . . . . . . . . . . Data Cores Recovered 1 | . . . . . . . . . . . . . 1 . . . . . . . Used 1 | . . . . . . . . . . . . . 1 . . . . . . . Hacking Detections 58 | . 1 . . 5 . 15 . 11 . . . . 6 . . . . 9 4 7 Full Trace Events 7 | . . . . . . 1 . 1 . . . . 1 . . . . . . 4 Feedback Events . | . . . . . . . . . . . . . . . . . . . . . Feedback Blocked . | . . . . . . . . . . . . . . . . . . . . . Robot Schematics Acquired . | . . . . . . . . . . . . . . . . . . . . . Robots Built . | . . . . . . . . . . . . . . . . . . . . . Authchips . | . . . . . . . . . . . . . . . . . . . . . Time . | . . . . . . . . . . . . . . . . . . . . . Total Robot Build Rating . | . . . . . . . . . . . . . . . . . . . . . Part Schematics Acquired 5 | . . . . . . 1 . . . . . . . . . 4 . . . . Parts Built 1 | . . . . . . . . . . . . . . . . . . . . 1 Authchips 1 | . . . . . . . . . . . . . . . . . . . . 1 Time 24 | . . . . . . . . . . . . . . . . . . . . 24 Total Part Build Rating 3 | . . . . . . . . . . . . . . . . . . . . 3 Parts Repaired 1 | . . . . . . . . 1 . . . . . . . . . . . . Time 51 | . . . . . . . . 51 . . . . . . . . . . . . Parts Recycled . | . . . . . . . . . . . . . . . . . . . . . Recycled Matter . | . . . . . . . . . . . . . . . . . . . . . Retrieved Matter . | . . . . . . . . . . . . . . . . . . . . . Retrieved Components 20 | . . . . 8 . . . 5 . . . . 7 . . . . . . . Parts Scanalyzed 1 | . . . . . . 1 . . . . . . . . . . . . . . Part Schematics Acquired 1 | . . . . . . 1 . . . . . . . . . . . . . . Parts Damaged . | . . . . . . . . . . . . . . . . . . . . . Bothacking | -11 -10 -10 -10 -7 -7 -5 -5 -5 -5 -5 -5 -4 -4 -4 -4 -4 -3 -3 -3 -3 ------------ Run | Yrd Mat Min Sub Rec Scr Fac Was Fac Upp Upp War Pro Fac Upp Upp Zhi Pro Res Qua Frg Used RIF Installer . | . . . . . . . . . . . . . . . . . . . . . Robots Hacked . | . . . . . . . . . . . . . . . . . . . . . Non-combat . | . . . . . . . . . . . . . . . . . . . . . Combat . | . . . . . . . . . . . . . . . . . . . . . Robot Hacks Applied . | . . . . . . . . . . . . . . . . . . . . . Relay Couplers Released 5 | . . . . . . . . 3 . . . . . . . . . . . 2 Machine Destruction 5 | . . . . . . . . 3 . . . . . . . . . . . 2 Fabnet Peak Effective % . | . . . . . . . . . . . . . . . . . . . . . Robots Rewired . | . . . . . . . . . . . . . . . . . . . . . Allies Hacked . | . . . . . . . . . . . . . . . . . . . . . Hacks Repelled . | . . . . . . . . . . . . . . . . . . . . . Allies | -11 -10 -10 -10 -7 -7 -5 -5 -5 -5 -5 -5 -4 -4 -4 -4 -4 -3 -3 -3 -3 -------- Run | Yrd Mat Min Sub Rec Scr Fac Was Fac Upp Upp War Pro Fac Upp Upp Zhi Pro Res Qua Frg Total Allies 6 | . . 3 . . . 2 . . . . . . . . . . . 1 . . Largest Group 3 | . . 3 3 . . 1 . . . . . . . . . . . 1 . . Highest-Rated Group 45 | . . 40 40 . . 26 . . . . . . . . . . . 45 . . Highest-Rated Ally 45 | . . 16 16 . . 26 . . . . . . . . . . . 45 . . Total Orders . | . . . . . . . . . . . . . . . . . . . . . Ally Attacks 36 | . . . 36 . . . . . . . . . . . . . . . . . Total Damage 461 | . . . 461 . . . . . . . . . . . . . . . . . Kills 3 | . . . 3 . . . . . . . . . . . . . . . . . Allies Corrupted 1 | . . . . . . 1 . . . . . . . . . . . . . . Allies Melted 2 | . . . . . . . . . 1 . . . . . . . . . . 1 Intel | -11 -10 -10 -10 -7 -7 -5 -5 -5 -5 -5 -5 -4 -4 -4 -4 -4 -3 -3 -3 -3 ------- Run | Yrd Mat Min Sub Rec Scr Fac Was Fac Upp Upp War Pro Fac Upp Upp Zhi Pro Res Qua Frg Active Infowar (turns) 11462 | 185 175 504 2903 . . 1149 31 527 699 315 718 156 357 286 94 65 247 294 332 2425 Optics 7044 | . . . . . . 498 31 527 699 315 718 156 357 286 94 65 247 294 332 2425 Sensors 5029 | . . . . . . 1149 31 527 699 315 411 156 357 286 94 65 247 294 186 212 Terrain 296 | 185 62 . . . . . . . . . . . . . . . . 49 . . Seismic 3684 | 102 175 504 2903 . . . . . . . . . . . . . . . . . Machine Analysis 2681 | . . . . . . 1147 31 527 699 277 . . . . . . . . . . Cloaking 1242 | . . . . . . . . 46 4 91 10 110 181 23 22 12 209 128 5 401 Jamming 243 | . . . . . . 243 . . . . . . . . . . . . . . ECM 637 | . . . . . . 146 5 478 8 . . . . . . . . . . . Robot Analysis Total 4 | . . . . . . . . . . . . . . . . 4 . . . . Derelict Logs Recovered 14 | . . 1 2 . 4 . . . 2 2 . 1 . 2 . . . . . . Drone Launches . | . . . . . . . . . . . . . . . . . . . . . Drone Recoveries . | . . . . . . . . . . . . . . . . . . . . . Exploration | -11 -10 -10 -10 -7 -7 -5 -5 -5 -5 -5 -5 -4 -4 -4 -4 -4 -3 -3 -3 -3 ------------- Run | Yrd Mat Min Sub Rec Scr Fac Was Fac Upp Upp War Pro Fac Upp Upp Zhi Pro Res Qua Frg Turns Passed 16491 | 278 505 885 3918 922 2283 1155 31 527 699 315 718 156 357 286 94 65 247 294 332 2424 Spaces Moved 16044 | 141 334 489 1504 349 1320 2038 71 1081 984 609 972 330 877 562 306 156 359 787 651 2124 Core 3 | 3 . . . . . . . . . . . . . . . . . . . . Treads 3981 | 138 191 489 1494 349 1320 . . . . . . . . . . . . . . . Legs 1329 | . . . . . . . . . . . . . . . . . . . . 1329 Wheels 153 | . 143 . 10 . . . . . . . . . . . . . . . . . Hover . | . . . . . . . . . . . . . . . . . . . . . Flight 10578 | . . . . . . 2038 71 1081 984 609 972 330 877 562 306 156 359 787 651 795 Fastest Speed 23 | 50 80 160 130 250 160 34 37 37 37 37 27 27 26 26 26 26 26 23 23 23 Average Speed 79 | 157 129 160 240 250 171 35 37 37 37 38 41 27 26 26 26 26 26 23 23 62 Slowest Speed 320 | 160 160 160 320 250 250 40 37 37 37 97 87 27 27 26 26 26 91 23 23 260 Overloaded Moves . | . . . . . . . . . . . . . . . . . . . . . Propulsion Burnouts . | . . . . . . . . . . . . . . . . . . . . . Robots Hopped 16 | . . . . . . 5 . 5 . . . . . . . . . 6 . . Potential Cave-ins 7 | . . . . . . . . . . . . . . . . . . . 2 5 Cave-ins Triggered . | . . . . . . . . . . . . . . . . . . . . . Exploration Rate (%) 60 | 8 51 99 88 68 89 42 71 41 86 69 90 64 26 63 58 63 45 31 67 60 Regions Visited 20 Branch Regions 14 Pre-discovered Areas 15 | . . . 1 5 . 1 . . 1 1 . 1 . 2 . 3 . . . . Known Exits Taken 12 | . . . . . . . . 1 1 1 1 1 1 1 1 1 1 1 1 . Unknown Exits Taken 6 | 1 1 1 1 1 1 . . . . . . . . . . . . . . . Scrap Searched 42 | . . 3 16 . 9 . . . 2 3 . 3 . 3 . . 3 . . . Spaces Dug 149 | . . . 2 . . 28 . 15 13 10 3 11 14 2 1 . 11 15 12 12 Terrain Destroyed 975 | . . 18 33 3 . 38 . 18 15 13 158 14 15 2 1 . 11 15 19 602 Melee 132 | . . . . . . 24 . 12 13 10 3 11 14 2 1 . 11 15 11 5 Projectile 170 | . . . 6 3 . 14 . 6 2 3 . 3 1 . . . . . 8 124 AOE 673 | . . 18 27 . . . . . . . 155 . . . . . . . . 473 Terrain Rammed . | . . . . . . . . . . . . . . . . . . . . . Walls Destroyed . | . . . . . . . . . . . . . . . . . . . . . Machines Disabled . | . . . . . . . . . . . . . . . . . . . . . Actions | -11 -10 -10 -10 -7 -7 -5 -5 -5 -5 -5 -5 -4 -4 -4 -4 -4 -3 -3 -3 -3 --------- Run | Yrd Mat Min Sub Rec Scr Fac Was Fac Upp Upp War Pro Fac Upp Upp Zhi Pro Res Qua Frg Total 18673 | 166 383 576 1708 379 1346 2362 75 1130 1286 659 1250 372 954 685 315 176 488 845 770 2748 Wait 1337 | . . 62 104 14 . 159 . 5 255 24 193 21 32 101 8 6 117 19 54 163 Move 15994 | 140 333 488 1503 348 1319 2028 70 1070 983 608 971 329 876 561 305 155 358 775 650 2124 Hop 15 | . . . . . . 5 . 5 . . . . . . . . . 5 . . Pick Up 131 | 2 16 5 8 2 10 12 1 3 6 2 2 . 7 2 . 4 . 7 4 38 Fast Attach 87 | 8 4 . 4 . 3 13 1 1 2 . 24 1 6 1 . 1 . 1 1 16 Attach 45 | . . . 1 1 . 9 1 1 1 . 1 3 2 3 . . . 2 4 16 Detach 41 | 1 3 . . . . 7 . . 3 . 7 3 1 2 . . . 1 4 9 Swap 176 | . 3 6 17 . 2 20 . 6 10 9 15 . 2 1 . 8 2 3 5 67 Drop 154 | . 9 4 17 2 12 15 2 2 9 1 19 1 6 . . 2 . 7 4 42 Fire 398 | 15 14 7 54 8 . 20 . 5 2 4 11 3 1 12 . . . . 24 218 Melee 203 | . . . . . . 37 . 32 15 11 7 11 21 2 2 . 11 25 20 9 Ram . | . . . . . . . . . . . . . . . . . . . . . Kick 2 | . . . . . . . . . . . . . . . . . . . . 2 Crush 9 | . 1 4 . 4 . . . . . . . . . . . . . . . . Escape Stasis 38 | . . . . . . 36 . . . . . . . . . . . . . 2 Rewire 2 | . . . . . . . . . . . . . . . . . . . . 2 Trap 1 | . . . . . . 1 . . . . . . . . . . . . . . Miscellaneous 40 | . . . . . . . . . . . . . . . . . . . . 40 Route ------- -11/Scrapyard -10/Materials -10/Mines (discovered 3 exits: [*Mat x2] / *Sub) -10/Subcaves (discovered 3 exits: [*Mat] / *Rec / *Scr) -7/Recycling (discovered 2 exits: *Fac / *Scr) -7/Scraptown (discovered 2 exits: *Fac x2) -5/Factory (discovered 6 exits: *Fac x2 / Upp x2 / *Ext x2) -5/Waste -5/Factory (discovered 6 exits: *Fac x2 / *Upp x2 / Ext x2) -5/Upper Caves -5/Upper Caves (discovered 2 exits: *Fac / *War) -5/Warlord -4/Proximity Caves -4/Factory (discovered 5 exits: *Res x3 / *Upp x2) -4/Upper Caves -4/Upper Caves (discovered 2 exits: *Res / *Zhi) -4/Zhirov -3/Proximity Caves -3/Research (discovered 5 exits: *Res x2 / Arm / *Qua x2) -3/Quarantine (discovered 3 exits: *Res / [*Sec] / *Frg) -3/Protoforge 0bPrime History --------- Turn | Location | Event 4 | -11/Scrapyard | Discovered new exit (range 16) 279 | -11/Scrapyard | Entered Materials 307 | -10/Materials | Build established: Mutant 401 | -10/Materials | Discovered new exit (range 16) 784 | -10/Materials | Entered Mines 788 | -10/Mines | Learned Materials trap positions 972 | -10/Mines | A weapon hastily lodged in a ceiling crevice suddenly fell to the ground 1108 | -10/Mines | Received a Rocket Launcher from a helpful Derelict 1204 | -10/Mines | Discovered new exit (range 9) 1507 | -10/Mines | Discovered new exit (range 14) 1544 | -10/Mines | Assisted by bots powering up and referring to "LRC-V3" 1652 | -10/Mines | Discovered new exit (range 5) 1669 | -10/Mines | Entered Subcaves 1669 | -10/Subcaves | Accompanied by 3 allies 1670 | -10/Subcaves | Approached by a straggling Scientist 1679 | -10/Subcaves | A Subdweller sparked back to life 1751 | -10/Subcaves | Found Prototype Flight Unit 2101 | -10/Subcaves | Scientist uncovered a shortcut to Scraptown 2205 | -10/Subcaves | Shifting Twisted Machinery released Sub. Monowheel 2408 | -10/Subcaves | Shifting Twisted Machinery released Piercing Trap 2853 | -10/Subcaves | A swath of the cavern ceiling suddenly collapsed 3184 | -10/Subcaves | Disturbed a concealed Subdweller 3309 | -10/Subcaves | Learned 8 Materials zone layouts 3625 | -10/Subcaves | A swath of the cavern ceiling suddenly collapsed 4298 | -10/Subcaves | Shifting Twisted Machinery released Sub. Laser 4304 | -10/Subcaves | Shifting Twisted Machinery released Hvy. Riot Gun 4698 | -10/Subcaves | Shifting Twisted Machinery released Sub. Monowheel 4707 | -10/Subcaves | Shifting Twisted Machinery released Sub. Monowheel 4740 | -10/Subcaves | Discovered new exit (range 8) 5110 | -10/Subcaves | Visited 4L-MR0's lab 5121 | -10/Subcaves | Identified Flightbrick 5140 | -10/Subcaves | Found Gun Armor 5554 | -10/Subcaves | Discovered new exit (range 14) 5587 | -10/Subcaves | Entered Recycling 6048 | -7/Recycling | Discovered new exit (range 12) 6447 | -7/Recycling | Scanned before Scraplab entrance 6484 | -7/Recycling | Entered Scraplab 6504 | -7/Recycling | Discovered new exit (range 3) 6509 | -7/Recycling | Entered Scraptown 6754 | -7/Scraptown | Scanned Subdweller tech in exchange for log data 6759 | -7/Scraptown | Learned Research garrison access intel 6762 | -7/Scraptown | Learned location of 1 exit from Factory 6764 | -7/Scraptown | Learned Factory stockpile data 6767 | -7/Scraptown | Learned location of 1 exit from Research 6789 | -7/Scraptown | Discovered new exit (range 11) 7288 | -7/Scraptown | Heard Great Nut preacher, LISTEN AND RECITE! 7323 | -7/Scraptown | Visited Comm Corps 7364 | -7/Scraptown | Visited TADAMA 7418 | -7/Scraptown | Visited UFD Registry 7418 | -7/Scraptown | Registered with UFD as "Pyrodisc" 7451 | -7/Scraptown | Visited Cyclists 7463 | -7/Scraptown | Entered Cyclist Reading Room 7494 | -7/Scraptown | Visited Bundlers 7610 | -7/Scraptown | Visited Fellowship of the Rings 7633 | -7/Scraptown | Visited IN-MT5's Study 7667 | -7/Scraptown | Visited Cave Peace 7828 | -7/Scraptown | Delivered Scrap Shield to a Scientist 7958 | -7/Scraptown | Visited Curators Association 8001 | -7/Scraptown | Visited Science Guys 8046 | -7/Scraptown | Visited Science Testing Area 8125 | -7/Scraptown | Visited Junk Repository 8191 | -7/Scraptown | Visited Botcube Research 8220 | -7/Scraptown | Visited Junk Repository 8293 | -7/Scraptown | Visited Infowarlord's Domain 8303 | -7/Scraptown | Found Exp. Sensor Array 8330 | -7/Scraptown | Visited Derelict Rescue Squad 8351 | -7/Scraptown | Visited Modified Component R&D 8709 | -7/Scraptown | Met Optimus 8709 | -7/Scraptown | Accepted into 0bPrime 8785 | -7/Scraptown | Discovered new exit (range 5) 8792 | -7/Scraptown | Entered Factory 8792 | -5/Factory | Evolved 10 slots: Propulsion x4, Utility x6 8793 | -5/Factory | Identified exit to Factory 8793 | -5/Factory | Attached Flightbrick, gained temporary slots: Utility x3 8907 | -5/Factory | Found Powered Armor 9023 | -5/Factory | Identified exit to Upper Caves 9023 | -5/Factory | Identified exit to Extension 9080 | -5/Factory | Build established: Hacker-Ninja 9368 | -5/Factory | Loaded intel: 8 recycling unit locations 9539 | -5/Factory | Spotted B-75 Beast 9868 | -5/Factory | Discovered exit to Factory (range 21) 9875 | -5/Factory | Learned location of Protoforge (-3) 9892 | -5/Factory | Build established: Hacker-Scout 9947 | -5/Factory | Manually triggered Chute Trap 9947 | -5/Factory | Sucked down chute 9947 | -5/Factory | Entered Waste 9948 | -5/Waste | Spotted C-40 Crusher 9958 | -5/Waste | Spotted C-40 Crusher 9958 | -5/Waste | Spotted C-40 Crusher 9960 | -5/Waste | Spotted C-40 Crusher 9962 | -5/Waste | EMP discharged 9963 | -5/Waste | Spotted C-40 Crusher 9965 | -5/Waste | Spotted C-40 Crusher 9966 | -5/Waste | Discovered new exit (range 22) 9969 | -5/Waste | Found Prototype Device 9969 | -5/Waste | Identified Adv. Kinecellerator 9978 | -5/Waste | Identified exit to Factory 9978 | -5/Waste | Entered Factory 9993 | -5/Factory | Loaded intel: 8 recycling unit locations 10155 | -5/Factory | Found Prototype Launcher 10217 | -5/Factory | Discovered exit to Factory (range 4) 10270 | -5/Factory | Build established: Hacker-Ninja 10296 | -5/Factory | Repaired Corrupted Adv. Cloaking Device? 10503 | -5/Factory | Discovered exit to Factory (range 13) 10505 | -5/Factory | Entered Upper Caves 10507 | -5/Upper Caves | UFD Scientist delivered a prototype 10509 | -5/Upper Caves | Identified Tesla Bomb Launcher 10515 | -5/Upper Caves | Found Prototype Protection 10525 | -5/Upper Caves | Identified Enh. Scrap Shield 10596 | -5/Upper Caves | Learned Factory interactive machine intel 10601 | -5/Upper Caves | Entered an active Warlord outpost 10605 | -5/Upper Caves | Learned Research trap positions 10605 | -5/Upper Caves | Learned Extension terminal intel 10757 | -5/Upper Caves | Learned Factory terminal intel 10758 | -5/Upper Caves | Learned Extension terminal intel 10758 | -5/Upper Caves | Learned Factory terminal intel 10771 | -5/Upper Caves | Lost 3 allies 10832 | -5/Upper Caves | Encountered a Warlord checkpoint 11169 | -5/Upper Caves | Discovered new exit (range 6) 11170 | -5/Upper Caves | Identified exit to Upper Caves 11189 | -5/Upper Caves | Found Alien Artifact 11204 | -5/Upper Caves | Entered another Upper Caves area 11205 | -5/Upper Caves | Encountered a Warlord checkpoint 11206 | -5/Upper Caves | Learned 8 Factory zone layouts 11266 | -5/Upper Caves | Discovered exit to Factory (range 4) 11297 | -5/Upper Caves | Spotted B-75 Beast 11317 | -5/Upper Caves | Learned 4 Factory zone layouts 11404 | -5/Upper Caves | Discovered new exit (range 11) 11407 | -5/Upper Caves | Found DCF Scrap (12 items) 11445 | -5/Upper Caves | Identified exit to Warlord 11512 | -5/Upper Caves | Learned Armory garrison access intel 11512 | -5/Upper Caves | Learned Extension stockpile data 11512 | -5/Upper Caves | Learned 8 Factory zone layouts 11512 | -5/Upper Caves | Learned location of 1 exit from Research 11512 | -5/Upper Caves | Learned location of Extension (-5) 11512 | -5/Upper Caves | Learned location of 1 exit from Factory 11519 | -5/Upper Caves | Entered Warlord 11533 | -5/Warlord | System corruption cleaned by Quarantine Array 11568 | -5/Warlord | Learned Armory repair station intel 11568 | -5/Warlord | Learned Research scanalyzer intel 11568 | -5/Warlord | Learned Testing emergency access door positions 11577 | -5/Warlord | Visited the Vortex Lab 11582 | -5/Warlord | Found Prototype Launcher 11582 | -5/Warlord | Identified Vortex Catalyst Activator 11589 | -5/Warlord | Warlord's base attacked by MAIN.C 11611 | -5/Warlord | Rebuked by Warlord 11738 | -5/Warlord | Found Prototype Energy Cannon 11738 | -5/Warlord | Identified Vortex Cannon 11785 | -5/Warlord | Found Prototype Hackware 11785 | -5/Warlord | Identified Ghost Barrier 11788 | -5/Warlord | Found Prototype Processor 11788 | -5/Warlord | Identified Exp. Core Analyzer 11790 | -5/Warlord | Found Prototype Device 11790 | -5/Warlord | Identified System Purifier 11795 | -5/Warlord | Found Prototype Device 11795 | -5/Warlord | Identified Exp. Cloaking Device 11818 | -5/Warlord | Murdered LV-01A 11821 | -5/Warlord | Found Spectral Analyzer 11826 | -5/Warlord | Found Prototype Device 11826 | -5/Warlord | Identified Exp. Shock Absorption System 11828 | -5/Warlord | Found Prototype Device 11828 | -5/Warlord | Identified Exp. Focal Shield 11836 | -5/Warlord | Found Prototype Launcher 11836 | -5/Warlord | Identified Exp. Neutron Missile Launcher 11939 | -5/Warlord | Warlord forces counterattacked 11982 | -5/Warlord | Spotted Executioner 11982 | -5/Warlord | Spotted Striker 12041 | -5/Warlord | Spotted Striker 12085 | -5/Warlord | Build established: Scavenger-Mutant 12127 | -5/Warlord | Lost 7 allies 12159 | -5/Warlord | Spotted Executioner 12170 | -5/Warlord | Spotted Executioner 12200 | -5/Warlord | Discovered new exit (range 16) 12205 | -5/Warlord | Spotted Striker 12205 | -5/Warlord | Spotted Striker 12216 | -5/Warlord | Destroyed Striker 12220 | -5/Warlord | Destroyed Striker 12237 | -5/Warlord | Identified exit to Proximity Caves 12237 | -5/Warlord | Entered Proximity Caves 12241 | -4/Proximity Caves | Destroyed 12 combat bots 12243 | -4/Proximity Caves | Lost 14 allies 12304 | -4/Proximity Caves | Spotted B-86 Titan 12383 | -4/Proximity Caves | Discovered exit to Factory (range 12) 12393 | -4/Proximity Caves | Entered Factory 12393 | -4/Factory | Evolved 2 slots: Propulsion x1, Utility x1 12394 | -4/Factory | Identified exit to Research 12395 | -4/Factory | Identified exit to Upper Caves 12396 | -4/Factory | Loaded intel: 54 interactive machine locations 12397 | -4/Factory | Loaded intel: 26 terminal locations 12408 | -4/Factory | Loaded intel: 8 recycling unit locations 12569 | -4/Factory | Build established: Hacker-Ninja 12603 | -4/Factory | Discovered exit to Research (range 5) 12715 | -4/Factory | System corruption reached 10% 12729 | -4/Factory | Garrison activated, responded to threat 12750 | -4/Factory | Entered Upper Caves 12752 | -4/Upper Caves | Attracted the attention of an 0b10 checkpoint 12943 | -4/Upper Caves | Found Alien Artifact 12943 | -4/Upper Caves | Identified Core Expander 12943 | -4/Upper Caves | Installed Core Expander, added new Power slot 12971 | -4/Upper Caves | Discovered new exit (range 9) 12973 | -4/Upper Caves | Identified exit to Upper Caves 12974 | -4/Upper Caves | Learned location of Armory (-3) 13036 | -4/Upper Caves | Entered another Upper Caves area 13036 | -4/Upper Caves | Discovered exit to Research (range 8) 13127 | -4/Upper Caves | Discovered new exit (range 12) 13129 | -4/Upper Caves | Identified exit to Zhirov 13130 | -4/Upper Caves | Entered Zhirov 13130 | -4/Zhirov | Discovered new exit (range 3) 13135 | -4/Zhirov | Met Zhirov 13146 | -4/Zhirov | Learned location of Testing (-2) 13146 | -4/Zhirov | Learned location of Command (-1) 13150 | -4/Zhirov | Zhirov requested help retrieving the SGEMP Prototype 13155 | -4/Zhirov | Found Alien Artifact 13155 | -4/Zhirov | Identified Integrated Dissipator 13155 | -4/Zhirov | Installed Integrated Dissipator, increased core heat dissipation (+20) 13162 | -4/Zhirov | Found Alien Artifact 13195 | -4/Zhirov | Identified exit to Proximity Caves 13195 | -4/Zhirov | Entered Proximity Caves 13233 | -3/Proximity Caves | Spotted B-86 Titan 13439 | -3/Proximity Caves | Discovered exit to Research (range 5) 13442 | -3/Proximity Caves | Entered Research 13442 | -3/Research | Evolved 2 slots: Propulsion x1, Utility x1 13443 | -3/Research | Identified exit to Research 13443 | -3/Research | Identified exit to Quarantine 13444 | -3/Research | Loaded intel: 79 trap records 13445 | -3/Research | Loaded intel: 6 scanalyzer locations 13446 | -3/Research | Loaded intel: 4 garrison access locations 13571 | -3/Research | Spotted B-86 Titan 13582 | -3/Research | Found Exp. Focal Shield 13606 | -3/Research | Found Centrium Heavy Armor Plating 13658 | -3/Research | Discovered exit to Research (range 20) 13667 | -3/Research | Identified exit to Armory 13710 | -3/Research | Spotted B-86 Titan 13716 | -3/Research | Loaded intel: 5 recycling unit locations 13736 | -3/Research | Entered Quarantine 13879 | -3/Quarantine | Found Gamma Bomb Array 13893 | -3/Quarantine | Found Alien Artifact 13915 | -3/Quarantine | Discovered exit to Research (range 9) 14046 | -3/Quarantine | Spotted Fortress 14062 | -3/Quarantine | Discovered new exit (range 5) 14062 | -3/Quarantine | Discovered new exit (range 6) 14063 | -3/Quarantine | Identified exit to Protoforge 14068 | -3/Quarantine | Entered Protoforge 14083 | -3/Protoforge | Spotted Hotshot 14090 | -3/Protoforge | Spotted Hotshot 14157 | -3/Protoforge | Superfortress began startup sequence 14166 | -3/Protoforge | Spotted B-86 Titan 14207 | -3/Protoforge | Found Prototype Ballistic Gun 14207 | -3/Protoforge | Identified Cep. XC Strikerail 14215 | -3/Protoforge | Found Cep. XC Strikerail 14217 | -3/Protoforge | Found Cep. XC Strikerail 14365 | -3/Protoforge | Fabricated CPS Tube (x1) 14369 | -3/Protoforge | Spotted EXE-6 14369 | -3/Protoforge | Spotted EXE-6 14378 | -3/Protoforge | Spotted Decapitator 14378 | -3/Protoforge | Spotted Decapitator 14385 | -3/Protoforge | UFD initiated attack on Protoforge 14385 | -3/Protoforge | Loaded intel: 3 recycling unit locations 14415 | -3/Protoforge | Destroyed EXE-6 14421 | -3/Protoforge | Optimus greeted in Protoforge 14453 | -3/Protoforge | Attached Gun Armor, gained temporary slots: Weapon x2 14455 | -3/Protoforge | Found Prototype Processor 14459 | -3/Protoforge | Found Cep. XC Strikerail 14559 | -3/Protoforge | Found Cep. XC Strikerail 14566 | -3/Protoforge | Found Prototype Storage 14566 | -3/Protoforge | Identified Cep. NT7 Matterbank 14572 | -3/Protoforge | Found Cep. NT7 Matterbank 14657 | -3/Protoforge | Spotted AP7-3 14664 | -3/Protoforge | P-80 Master assimilated allied Lugger 127 14666 | -3/Protoforge | Spotted Striker 14669 | -3/Protoforge | Destroyed AP7-3 14672 | -3/Protoforge | P-80 Master assimilated allied 03F35-D 14677 | -3/Protoforge | Spotted Executioner 14678 | -3/Protoforge | Spotted Striker 14680 | -3/Protoforge | Spotted Striker 14687 | -3/Protoforge | Destroyed Executioner 14691 | -3/Protoforge | Destroyed Striker 14699 | -3/Protoforge | Spotted Striker 14703 | -3/Protoforge | Spotted Striker 14708 | -3/Protoforge | Destroyed Striker 14745 | -3/Protoforge | Found Prototype Processor 14746 | -3/Protoforge | Identified Transdimensional Reconstructor 14746 | -3/Protoforge | Forge Plexus network access discovered 14757 | -3/Protoforge | Destroyed 8 combat bots 14766 | -3/Protoforge | Spotted Striker 14768 | -3/Protoforge | Spotted Striker 14771 | -3/Protoforge | Spotted Striker 14773 | -3/Protoforge | Spotted Striker 14782 | -3/Protoforge | Identified Exp. Target Analyzer 14784 | -3/Protoforge | Identified Exp. Armor Integrity Analyzer 14789 | -3/Protoforge | Lost 15 allies 14797 | -3/Protoforge | Spotted Overlord 14812 | -3/Protoforge | Destroyed Overlord 14845 | -3/Protoforge | Lost 4 allies 14847 | -3/Protoforge | Spotted Executioner 14848 | -3/Protoforge | Destroyed 7 combat bots 14858 | -3/Protoforge | Spotted Striker 14871 | -3/Protoforge | Spotted Striker 14875 | -3/Protoforge | Destroyed Executioner 14878 | -3/Protoforge | Spotted Executioner 14887 | -3/Protoforge | Destroyed Executioner 14890 | -3/Protoforge | Destroyed Striker 14894 | -3/Protoforge | Spotted Executioner 14895 | -3/Protoforge | Spotted Striker 14898 | -3/Protoforge | Destroyed Striker 14913 | -3/Protoforge | Spotted Executioner 14931 | -3/Protoforge | Destroyed Executioner 14946 | -3/Protoforge | Found Exp. Active Sensor Suite 14955 | -3/Protoforge | Destroyed 19 combat bots 14956 | -3/Protoforge | Spotted Executioner 14957 | -3/Protoforge | Spotted Striker 14962 | -3/Protoforge | Destroyed Executioner 14965 | -3/Protoforge | Destroyed Striker 14986 | -3/Protoforge | Lost 16 allies 14998 | -3/Protoforge | Spotted Executioner 14999 | -3/Protoforge | Spotted Executioner 15000 | -3/Protoforge | Spotted Striker 15005 | -3/Protoforge | Spotted Striker 15009 | -3/Protoforge | Destroyed Executioner 15009 | -3/Protoforge | Destroyed Striker 15013 | -3/Protoforge | P-80 Master assimilated allied Lugger 645 15015 | -3/Protoforge | Destroyed Striker 15015 | -3/Protoforge | Destroyed Executioner 15036 | -3/Protoforge | Destroyed 8 combat bots 15063 | -3/Protoforge | Found Adv. Kinecellerator 15069 | -3/Protoforge | Spotted Striker 15071 | -3/Protoforge | Spotted Striker 15077 | -3/Protoforge | Destroyed Striker 15090 | -3/Protoforge | Destroyed Striker 15098 | -3/Protoforge | Spotted Executioner 15099 | -3/Protoforge | Destroyed Executioner 15140 | -3/Protoforge | Found Adv. Kinecellerator 15148 | -3/Protoforge | Destroyed 9 combat bots 15185 | -3/Protoforge | Spotted Striker 15187 | -3/Protoforge | Spotted Executioner 15228 | -3/Protoforge | Spotted Hotshot 15228 | -3/Protoforge | UFD reported confirmed Drillbomb installation 15233 | -3/Protoforge | Destroyed Hotshot 15239 | -3/Protoforge | UFD reported confirmed Drillbomb installation 15239 | -3/Protoforge | Spotted Hotshot 15240 | -3/Protoforge | Destroyed Hotshot 15269 | -3/Protoforge | Spotted Striker 15300 | -3/Protoforge | Destroyed Striker 15304 | -3/Protoforge | Build established: Scavenger-Tank 15382 | -3/Protoforge | Spotted Executioner 15385 | -3/Protoforge | Destroyed Executioner 15385 | -3/Protoforge | Spotted Executioner 15395 | -3/Protoforge | Destroyed Executioner 15422 | -3/Protoforge | Destroyed 15 combat bots 15522 | -3/Protoforge | Spotted Executioner 15525 | -3/Protoforge | Spotted Executioner 15530 | -3/Protoforge | Spotted Executioner 15531 | -3/Protoforge | Destroyed Executioner 15533 | -3/Protoforge | Destroyed Executioner 15535 | -3/Protoforge | Destroyed Executioner 15539 | -3/Protoforge | Lost 3 allies 15545 | -3/Protoforge | Spotted Striker 15546 | -3/Protoforge | Destroyed Striker 15554 | -3/Protoforge | Spotted Striker 15558 | -3/Protoforge | Destroyed Striker 15559 | -3/Protoforge | UFD reported confirmed Drillbomb installation 15564 | -3/Protoforge | Spotted Executioner 15565 | -3/Protoforge | Destroyed Executioner 15574 | -3/Protoforge | Spotted Striker 15575 | -3/Protoforge | Destroyed Striker 15578 | -3/Protoforge | Spotted Striker 15578 | -3/Protoforge | Destroyed Striker 15586 | -3/Protoforge | Spotted Executioner 15597 | -3/Protoforge | Destroyed Executioner 15644 | -3/Protoforge | Spotted Executioner 15645 | -3/Protoforge | Spotted Striker 15646 | -3/Protoforge | Spotted Striker 15647 | -3/Protoforge | Spotted Striker 15651 | -3/Protoforge | Destroyed 26 combat bots 15671 | -3/Protoforge | Destroyed Striker 15671 | -3/Protoforge | Destroyed Executioner 15673 | -3/Protoforge | Spotted Striker 15679 | -3/Protoforge | Spotted Striker 15689 | -3/Protoforge | System corruption reached 10% 15689 | -3/Protoforge | Destroyed Striker 15697 | -3/Protoforge | Destroyed Striker 15700 | -3/Protoforge | Destroyed Striker 15714 | -3/Protoforge | Lost 4 allies 15726 | -3/Protoforge | Destroyed 16 combat bots 15740 | -3/Protoforge | Spotted Executioner 15741 | -3/Protoforge | Spotted Executioner 15741 | -3/Protoforge | Destroyed Executioner 15746 | -3/Protoforge | Spotted Striker 15746 | -3/Protoforge | Spotted Striker 15752 | -3/Protoforge | Destroyed Executioner 15759 | -3/Protoforge | Destroyed Striker 15760 | -3/Protoforge | Spotted Striker 15763 | -3/Protoforge | Spotted Executioner 15770 | -3/Protoforge | Destroyed Executioner 15777 | -3/Protoforge | Discovered exit to Research (range 23) 15800 | -3/Protoforge | UFD reported confirmed Drillbomb installation 15802 | -3/Protoforge | Destroyed 18 combat bots 15836 | -3/Protoforge | Spotted Executioner 15836 | -3/Protoforge | Spotted Executioner 15836 | -3/Protoforge | Spotted Striker 15836 | -3/Protoforge | Spotted Striker 15844 | -3/Protoforge | Destroyed Striker 15850 | -3/Protoforge | Destroyed Striker 15850 | -3/Protoforge | Destroyed Executioner 15854 | -3/Protoforge | Destroyed Executioner 15858 | -3/Protoforge | UFD reported confirmed Drillbomb installation 15860 | -3/Protoforge | Spotted Striker 15861 | -3/Protoforge | Spotted Executioner 15864 | -3/Protoforge | Destroyed Striker 15872 | -3/Protoforge | Destroyed Executioner 15893 | -3/Protoforge | Destroyed 20 combat bots 15935 | -3/Protoforge | Spotted Executioner 15935 | -3/Protoforge | Spotted Executioner 15935 | -3/Protoforge | Spotted Striker 15935 | -3/Protoforge | Spotted Striker 15935 | -3/Protoforge | Destroyed Executioner 15939 | -3/Protoforge | Destroyed Executioner 15939 | -3/Protoforge | Destroyed Striker 15954 | -3/Protoforge | Destroyed Striker 15960 | -3/Protoforge | Spotted Executioner 15960 | -3/Protoforge | Spotted Executioner 15964 | -3/Protoforge | Destroyed Executioner 15966 | -3/Protoforge | Destroyed Executioner 15997 | -3/Protoforge | Destroyed 18 combat bots 16055 | -3/Protoforge | Identified Subatomic Replicator 16055 | -3/Protoforge | Used Subatomic Replicator to replicate Exp. Neutron Missile Launcher 16082 | -3/Protoforge | Found UFD Drillbomb 16087 | -3/Protoforge | Spotted Striker 16089 | -3/Protoforge | Spotted Executioner 16089 | -3/Protoforge | Spotted Striker 16093 | -3/Protoforge | Destroyed Striker 16093 | -3/Protoforge | Destroyed Executioner 16122 | -3/Protoforge | Destroyed 7 combat bots 16132 | -3/Protoforge | Lost 10 allies 16143 | -3/Protoforge | Installed UFD Drillbomb at designated target 16143 | -3/Protoforge | UFD reported confirmed Drillbomb installation 16161 | -3/Protoforge | Spotted Striker 16161 | -3/Protoforge | Spotted Striker 16161 | -3/Protoforge | Spotted Striker 16163 | -3/Protoforge | Destroyed Striker 16165 | -3/Protoforge | Spotted Executioner 16167 | -3/Protoforge | Destroyed Striker 16167 | -3/Protoforge | Destroyed Striker 16181 | -3/Protoforge | Destroyed Executioner 16190 | -3/Protoforge | Spotted Striker 16194 | -3/Protoforge | Lost 4 allies 16212 | -3/Protoforge | Destroyed 13 combat bots 16214 | -3/Protoforge | Found UFD Drillbomb 16233 | -3/Protoforge | Installed UFD Drillbomb at designated target 16233 | -3/Protoforge | UFD reported confirmed Drillbomb installation 16242 | -3/Protoforge | UFD reported confirmed Drillbomb installation 16271 | -3/Protoforge | Found UFD Drillbomb 16326 | -3/Protoforge | Installed UFD Drillbomb at designated target 16326 | -3/Protoforge | UFD reported confirmed Drillbomb installation 16350 | -3/Protoforge | Found UFD Drillbomb 16392 | -3/Protoforge | Installed UFD Drillbomb at designated target 16392 | -3/Protoforge | UFD reported confirmed Drillbomb installation 16393 | -3/Protoforge | UFD began Drillbomb countdown 16493 | *** | Defending 0bPrime! Last Messages --------------- 16477_ System corrupted: Matter fused (-7). 16477_ Acquired 7 matter. 16483_ 0bP_NET: While we're all waiting around for our inevitable victory in T-10, a moment of silence for all those who spit bolts to get us here today. 16484_ 0bP_NET: PK-764! For learning about those Assembled things over in 0b10 the hard way, so we didn't have to. 16485_ 0bP_NET: Also Frameworth for that epic save with the barrage of overtuned dakka. Respect the dakka. 16486_ 0bP_NET: And S4-LTN's pet Recycler. I didn't mean it, but I was short on matter and it was a natural reflex. 16487_ 0bP_NET: Oh yeah, T-6 by the way. 16488_ 0bP_NET: LU-1G1, we know you're out there, digging away, so no moment of silence needed for you. 16489_ 0bP_NET: DD-05H though, you were a good one, we'll never forget the way you smashed your way west and just never stopped smashing. 16490_ 0bP_NET: Well my eulogizing is soon to be interrupted by scenes of half of Protoforge collapsing in on itself. Be careful out there. 16491_ 0bP_NET: T-2! 16492_ 0bP_NET: And that's a wrap. Map ----- +----------------------------------------------------+ | """"""""" % % " %" " " + "F""# | | """""""""""" % % ""% %% " + ""# | | """""""""""""% %% "% " % # """# | | """"""""""""""%%% " "" ! %"" "# "" # | | """"""""""""""" % %%"" %% "#" "##### | | """""""""""""""" "% % [%% " "#"" ""#???? | | """"""""""""""""" % %!! " " "###"F ""###???? | | """"""""""""""""""%%% "%" " "#?#"""""#?????? | | """"""""""""""""""%%% %% """ " "#?#"""""#?????? | | """"""""""""""""""%%%" " "" " "#?#######?????? | | """""""""""""""""""% % "#?????????????? | | """""""""""""""""""%" % ""m"" #?????????????? | | """"""""""""""""""" % % " " #?????????????? | | """""""""""""""""""% %% % " #?????????????? | | """""""""""""""""""% % #?????????????? | | """""""""""""""""""s %% ##????????????? | | """"""""""""""""""" % " #????????????? | | """"""""""""""""""" " "" "" % #????????????? | | """"""""""""""""""" s %[ " ##????????????? | | """"""""""""""""""n SS 3" E #?????????????? | | """""""""""""""""" "SS% % % #?????????????? | | """"""""""""""""""E% ""% """ #?????????????? | | """"""""""""""""" " " #?????????????? | | """""""""""""""" "" % E " "" #?????????????? | | """"""""""""""" " " """" #?????????????? | | """""""""""""" %" "@" """ #?????????????? | | """"""""""""" % %" " " #?????????????? | | """""""""""" ss % " " E #?????????????? | | """"""""" j! % "" #?????????????? | | j j SS """ s s " #?????????????? | | ss sSS ss% "" s """" #?????????????? | | ss s " "TT" ###???????????? | | E """ TT" <&#???????????? | | s "" "" s <&#???????????? | | s &&#???????????? | | SSj " "" """" &&#???????????? | | % SS s"" " "" &&#???????????? | | s "" "" "" &&#???????????? | | """ " " SS "" ###???????????? | | " """" SS "" " #?????????????? | | " " #?????????????? | | """""""""" """ #?????????????? | | """ """ #?????????????? | | """""""""" " " " """""""#?????????????? | | ######################+++###########?????????????? | | ?????????????????#"" ""#???????????????????? | | ???????????????###" "###?????????????????? | | ???????????????#"" ""#?????????????????? | | ???????????????#"" ""#?????????????????? | | ???????????????#"" ""#?????????????????? | +----------------------------------------------------+ Best States ------------- Heat Dissipation 71 Energy Generation 53 Energy Capacity 600 Matter Stores 300 Matter Capacity 300 Sight Range 24 Robot Scan Range 20 Terrain Scan Range 20 Terrain Scan Density 10 ECM Strength 1 Jamming Range 12 Cloak Strength 4 Power Amplification 20 Additional Mass Support 16 Armor Coverage 800 Resistance: KI 30 Propulsion Shielding 90 Utility Shielding 66 Weapon Shielding 90 Evasion (%) 72 Target Analysis 10 Core Analysis 8 Recoil Reduction 2 Kinecelleration 50 Offensive Hacking 35 Defensive Hacking 32 Authchip Count 1 Item Schematics ----------------- CPS Tube | -5/Factory | Scanalyzed Assault Drone Bay | -4/Zhirov | Free Exp. Heat Sink | -4/Zhirov | Free Exp. Optical Array | -4/Zhirov | Free Imp. Arc Thrower | -4/Zhirov | Free Robot Schematics ------------------ None Fabricated ------------ CPS Tube | x1 | -3/Protoforge | Authchip Repaired ---------- Adv. Cloaking Device | 16% | -5/Factory | Corrupted Alien Tech Used ----------------- Core Expander Integrated Dissipator Subatomic Replicator Achievements -------------- Ride The Lightning Challenges ------------ None Game ------ Seed SensorScanRailgun Manual? 0 Play Time 03:27:34 Cumulative 707.0 hours Start 2025.05.12 @ 14:42:43 End 2025.05.12 @ 18:16:56 Sessions 1 Manual Loads 0 Difficulty Rogue Special Mode None Game No. 238 Rogue 236 Adventurer 2 Explorer 0 Win Type 9 Total 39 Types 13/4/11/1/1/0/7/1/0/1 Lore% 95 Gallery% 92 Achievement% 82 Wizard Run 0 Options --------- Layout 0 ASCII 0 Keyboard 1 Movement Numpad Keybinds 0 Fullscreen 1 Font 24/Smallcaps Map View 76x50 Zoom Use 0% Tactical HUD 1 Map Filters NONE Filters NONE Steam 1 RUN: 820edd1f-69b3-41a3-8a70-0676f5273f8e